fUST/lending_fUST_20241214
["ID","MTS","AMOUNT","RATE_DAILY","PERIOD"]
[345283862,1734137747196,-500.0,0.000326,30]
[345283863,1734137747224,-3200.0,0.000326,30]
[345283864,1734137747264,-500.0,0.000326,30]
[345283865,1734137747294,-3200.0,0.000326,30]
[345283866,1734137747322,-550.34394679,0.000326,30]
[345283867,1734137747352,-3200.0,0.000326,30]
[345283868,1734137747381,-3200.0,0.000326,30]
[345283869,1734137747410,-3200.0,0.000326,30]
[345283870,1734137747438,-3200.0,0.000326,30]
[345283871,1734137747464,-3200.0,0.000326,30]
[345283872,1734137747492,-5630.36771624,0.000326,30]
[345283873,1734137747520,-1900.0,0.000326,30]
[345283874,1734137747547,-1900.0,0.000326,30]
[345283875,1734137747574,-1900.0,0.000326,30]
[345283876,1734137747601,-1900.0,0.000326,30]
[345283877,1734137747630,-1900.0,0.000326,30]
[345283878,1734137747656,-1900.0,0.000326,30]
[345283879,1734137747681,-1900.0,0.000326,30]
[345283880,1734137747709,-1900.0,0.000326,30]
[345283881,1734137747735,-1900.0,0.000326,30]
[345283882,1734137747761,-1900.0,0.000326,30]
[345283883,1734137747788,-1600.0,0.000326,30]
[345283884,1734137747814,-1900.0,0.000326,30]
[345283885,1734137747839,-1600.0,0.000326,30]
[345283886,1734137747865,-1900.0,0.000326,30]
[345283887,1734137747889,-1600.0,0.000326,30]
[345283888,1734137747916,-1900.0,0.000326,30]
[345283889,1734137747950,-1600.0,0.000326,30]
[345283890,1734137747975,-3508.02717153,0.000326,30]
[345283891,1734137748001,-1600.0,0.000326,30]
[345283892,1734137748028,-1600.0,0.000326,30]
[345283893,1734137748055,-1600.0,0.000326,30]
[345283894,1734137748082,-1600.0,0.000326,30]
[345283895,1734137748108,-1600.0,0.000326,30]
[345283896,1734137748135,-1600.0,0.000326,30]
[345283897,1734137748165,-1600.0,0.000326,30]
[345283898,1734137748193,-1600.0,0.000326,30]
[345283899,1734137748220,-1600.0,0.000326,30]
[345283900,1734137748248,-2224.62784617,0.000326,30]
[345283901,1734137748275,-700.0,0.000326,30]
[345283902,1734137748301,-700.0,0.000326,30]
[345283903,1734137748327,-700.0,0.000326,30]
[345283904,1734137748354,-700.0,0.000326,30]
[345283905,1734137748388,-700.0,0.000326,30]
[345283906,1734137748416,-700.0,0.000326,30]
[345283907,1734137748444,-700.0,0.000326,30]
[345283908,1734137748471,-700.0,0.000326,30]
[345283909,1734137748499,-700.0,0.000326,30]
[345283910,1734137748530,-700.0,0.000326,30]
[345283911,1734137748557,-700.0,0.000326,30]
[345283912,1734137748583,-700.0,0.000326,30]
[345283913,1734137748609,-1095.50582396,0.000326,30]
[345283914,1734137748641,-3000.0,0.00032602,30]
[345283915,1734137748669,-500.0,0.00032876,45]
[345283916,1734137748697,-500.0,0.00032876,49]
[345283917,1734137748727,-558.35229174,0.00032876,53]
[345283918,1734137748756,-1000.0,0.00032876,120]
[345283919,1734137748783,-1003.3554365,0.00032876,120]
[345283920,1734137748809,-242.57,0.00032876,15]
[345283921,1734137748835,-3000.0,0.00032876,30]
[345283922,1734137748862,-574.262,0.0003298,120]
[345283923,1734137749032,-173.44576688,0.00033,10]
[345283924,1734137749060,-169.0,0.00033,120]
[345283925,1734137749087,-1000.0,0.00033,120]
[345283926,1734137749113,-4000.0,0.00033,60]
[345283927,1734137749139,-2088.375,0.00033,60]
[345283928,1734137749167,-1271.15657533,0.0003315,30]
[345283929,1734137749199,-151.0,0.0003389,120]
[345283930,1734137749226,-1000.0,0.00034,120]
[345283931,1734137749251,-900.03541828,0.00034,120]
[345283932,1734137749276,-26726.56576443,0.00034,120]
[345283933,1734137749307,-250.0,0.00034,30]
[345283934,1734137749335,-574.265,0.0003418,120]
[345283935,1734137749361,-1314.91326334,0.00034728,12]
[345283936,1734137749387,-3168.41524517,0.000348,120]
[345283937,1734137749413,-151.0,0.00034986,120]
[345283938,1734137749439,-476.89319192,0.00035,10]
[345283939,1734137749465,-1000.0,0.00035,120]
[345283940,1734137749490,-2000.0,0.00035,60]
[345283941,1734137749515,-755.5324609,0.00035,120]
[345283942,1734137749540,-377.01312954,0.00035,120]
[345283943,1734137749566,-550.0,0.00035,120]
[345283944,1734137749590,-4536.85103474,0.00035,120]
[345283945,1734137749614,-178.8,0.00035,69]
[345283946,1734137749645,-10000.0,0.00035,20]
[345283947,1734137749670,-11623.0,0.00035,120]
[345283948,1734137749696,-5323.1125889,0.000351,120]
[345283949,1734137749722,-2403.33,0.000351,30]
[345283950,1734137749748,-5000.0,0.00035285,14]
[345283951,1734137749774,-574.284,0.0003538,120]
[345283952,1734137749798,-331.55,0.000356,30]
[345283953,1734137749822,-500.0,0.00035616,30]
[345283954,1734137749847,-504.7247949,0.00035616,30]
[345283955,1734137749871,-2993.787665,0.00035616,120]
[345283956,1734137749896,-151.0,0.00035836,120]
[345283957,1734137749921,-7501.28820805,0.00036,30]
[345283958,1734137749947,-10000.0,0.00036,30]
[345283959,1734137749972,-500.0,0.00036,120]
[345283960,1734137749996,-5087.95629626,0.00036,120]
[345283961,1734137750033,-250.0,0.00036,30]
[345283962,1734137750067,-190.45050417,0.000365,120]
[345283963,1734137750101,-574.347,0.0003658,120]
[345283964,1734137750134,-8360.26241223,0.000369,120]
[345283965,1734137750170,-500.0,0.00037,120]
[345283966,1734137750205,-1000.0,0.00037,120]
[345283967,1734137750236,-278.99183781,0.00037,30]
[345283968,1734137750270,-10000.0,0.00037,40]
[345283969,1734137750299,-151.0,0.00037479,120]
[345283970,1734137750331,-88919.86181163,0.000375,60]
[345283971,1734137787535,-900000.0,0.00030207,10]
[345283972,1734137791855,-900000.0,0.00030207,10]
[345283973,1734137795767,-900000.0,0.00030207,10]
[345283974,1734137804936,-900000.0,0.00030207,10]
[345283975,1734137811071,-900000.0,0.00030207,10]
[345283976,1734137813980,-900000.0,0.00030207,10]
[345283977,1734137824153,-841339.03110661,0.00030207,10]
[345283978,1734137824181,-188.46254799,0.00030207,12]
[345283979,1734137824210,-58472.5063454,0.00030207,10]
[345283980,1734137827176,-900000.0,0.00030207,10]
[345283981,1734137838468,-900000.0,0.00030207,10]
[345283983,1734138054217,249.405075,0.00013973,2]
[345284080,1734138635207,-249.405075,0.00020447,2]
[345284081,1734138635218,-162.0,0.00022,2]
[345284082,1734138635228,-194.2436087,0.00022237,2]
[345284083,1734138635237,-835.58206869,0.00022311,2]
[345284084,1734138635250,-4091.00074741,0.00022311,2]
[345284085,1734138635260,-200.0,0.000225,2]
[345284086,1734138635269,-162.0,0.00023014,2]
[345284087,1734138635279,-300.0,0.00023019,2]
[345284088,1734138635289,-300.0,0.00023019,2]
[345284089,1734138635298,-24900.0,0.0002302,2]
[345284090,1734138635308,-170.950755,0.00023061,2]
[345284091,1734138635317,-158.368,0.00023275,2]
[345284092,1734138635327,-1491.0472723,0.00023325,2]
[345284093,1734138635337,-199.733714,0.00023513,2]
[345284094,1734138635346,-233.828313,0.00023537,2]
[345284095,1734138635355,-150.679402,0.000236,2]
[345284096,1734138635365,-533.0,0.00023746,2]
[345284097,1734138635377,-2370.0,0.00023746,2]
[345284098,1734138635387,-2161.0,0.00023746,2]
[345284099,1734138635396,-152.0,0.00023751,2]
[345284100,1734138635405,-200.0,0.000242,2]
[345284101,1734138635414,-170.174812,0.00024519,2]
[345284102,1734138635424,-200.0,0.000247,2]
[345284103,1734138635434,-167.274,0.00024769,8]
[345284104,1734138635443,-155.70931779,0.000249,2]
[345284105,1734138635453,-500.0,0.00024973,2]
[345284106,1734138635463,-500.7719925,0.00024973,2]
[345284107,1734138635473,-500.0,0.00024973,2]
[345284108,1734138635482,-504.88679444,0.00024973,2]
[345284109,1734138635492,-160.08532705,0.00024973,2]
[345284110,1734138635501,-160.58537693,0.00024973,2]
[345284111,1734138635510,-500.0,0.00024973,2]
[345284112,1734138635519,-500.0,0.00024973,2]
[345284113,1734138635529,-397.21118153,0.00024973,2]
[345284114,1734138635538,-262.64861458,0.00024973,2]
[345284115,1734138635548,-500.94173361,0.00024973,2]
[345284116,1734138635557,-203.50847201,0.00024973,2]
[345284117,1734138635567,-500.71251462,0.00024973,2]
[345284118,1734138635576,-503.03255594,0.00024973,2]
[345284119,1734138635586,-528.2905009,0.00024973,2]
[345284120,1734138635596,-500.0,0.00024973,2]
[345284121,1734138635605,-500.0,0.00024973,2]
[345284122,1734138635614,-160.08532663,0.00024973,2]
[345284123,1734138635626,-500.0,0.00024973,2]
[345284124,1734138635635,-420.0,0.00024988,2]
[345284125,1734138635644,-198.66220795,0.00024999,2]
[345284126,1734138635654,-221.91555408,0.00024999,2]
[345284127,1734138635663,-500.0,0.00024999,2]
[345284128,1734138635673,-158.19825942,0.00024999,2]
[345284129,1734138635682,-276.23506074,0.00024999,2]
[345284130,1734138635692,-500.0,0.00024999,2]
[345284131,1734138635701,-500.0,0.00024999,2]
[345284132,1734138635710,-500.0,0.00024999,2]
[345284133,1734138635720,-500.0,0.00024999,2]
[345284134,1734138635730,-500.0,0.00024999,2]
[345284135,1734138635739,-570.02693325,0.00024999,2]
[345284136,1734138635748,-378.07004449,0.00024999,2]
[345284137,1734138635758,-468.79877739,0.00024999,2]
[345284138,1734138635767,-500.0,0.00024999,2]
[345284139,1734138635777,-500.0,0.00024999,2]
[345284140,1734138635786,-500.0,0.00024999,2]
[345284141,1734138635796,-500.0,0.00024999,2]
[345284142,1734138635806,-500.0,0.00024999,2]
[345284143,1734138635816,-500.0,0.00024999,2]
[345284144,1734138635825,-500.0,0.00024999,2]
[345284145,1734138635835,-500.0,0.00024999,2]
[345284146,1734138635844,-500.0,0.00024999,2]
[345284147,1734138635854,-500.0,0.00024999,2]
[345284148,1734138635863,-500.0,0.00024999,2]
[345284149,1734138635875,-500.0,0.00024999,2]
[345284150,1734138635886,-500.0,0.00024999,2]
[345284151,1734138635896,-500.0,0.00024999,2]
[345284152,1734138635906,-500.0,0.00024999,2]
[345284153,1734138635917,-500.0,0.00024999,2]
[345284154,1734138635927,-500.0,0.00024999,2]
[345284155,1734138635936,-513.685825,0.00024999,2]
[345284156,1734138635947,-500.0,0.00024999,2]
[345284157,1734138635956,-500.0,0.00024999,2]
[345284158,1734138635967,-568.49859605,0.00025,2]
[345284159,1734138635976,-4406.84071844,0.00025,2]
[345284160,1734138635986,-14269.54129895,0.00025,2]
[345284161,1734138635998,-73217.74645278,0.00025,2]
[345284162,1734138636010,-14598.90644146,0.00025,2]
[345284163,1734138636019,-71604.18755803,0.00025,2]
[345284164,1734138636034,-2693.26730576,0.00025,2]
[345284165,1734138636045,-14539.31704101,0.00025,2]
[345284166,1734138636056,-1011.7906468,0.00025,2]
[345284194,1734138637967,-11912.9121,0.00025,2]
[345284207,1734138638078,-9356.00002302,0.00025,2]
[345284209,1734138638089,-31020.93710845,0.00025,2]
[345284391,1734138639935,-926.18860761,0.00025,2]
[345284398,1734138639996,-100368.08955239,0.00025,2]
[345284400,1734138640005,-19171.54739869,0.00025,2]
[345284951,1734138645874,-740.933486,0.00025,2]
[345284953,1734139020920,232.545928,0.00013973,2]
[345284967,1734139719904,4467.450042,0.0001999,2]
[345285006,1734139832413,-232.545928,0.00020447,2]
[345285008,1734139832424,-4060.212192,0.00022,2]
[345285010,1734139832434,-243.47324164,0.00023,2]
[345285012,1734139832444,-198.0539287,0.00023288,2]
[345285015,1734139832458,-170.174812,0.00023505,2]
[345285017,1734139832467,-300.0,0.00023644,2]
[345285019,1734139832478,-300.0,0.00023644,2]
[345285021,1734139832487,-1311.08952551,0.00023645,2]
[345285023,1734139832500,-11423.39844838,0.00023645,2]
[345285968,1734139846398,-1073.74450833,0.00023645,2]
[345285970,1734139846410,-3406.57304108,0.00023645,2]
[345285972,1734139846419,-593.609,0.0002375,2]
[345285973,1734139846429,-600.0,0.00024,2]
[345285974,1734139846438,-600.0,0.000244,3]
[345285975,1734139846448,-233.8283146,0.00024576,2]
[345285976,1734139846457,-600.0,0.000248,5]
[345285978,1734139846467,-1581.85116932,0.000248,2]
[345285980,1734139846476,-423.86,0.00024849,2]
[345285982,1734139846486,-1504.63138601,0.00024849,2]
[345285992,1734139846570,-860.81001428,0.00024849,2]
[345285994,1734139846582,-4.55859971,0.00024849,2]
[345285996,1734139846592,-2161.0,0.00024849,2]
[345285998,1734139846603,-150.674,0.00024849,2]
[345286001,1734139846613,-99.03769181,0.00024849,2]
[345286016,1734139846754,-83.27630819,0.00024849,2]
[345286019,1734139846764,-167.274,0.000249,8]
[345286021,1734139846776,-160.95098145,0.00024999,2]
[345286024,1734139846785,-26905.67156863,0.00025,2]
[345286027,1734139846795,-204.46468174,0.00025,2]
[345286029,1734139846804,-166.35348277,0.00025,2]
[345286032,1734139846813,-800.83596637,0.00025,2]
[345286035,1734139846823,-348.56757197,0.00025,2]
[345286037,1734139846832,-5780.29065834,0.00025,7]
[345286040,1734139846842,-16942.76769742,0.00025,2]
[345286042,1734139846854,-167.253881,0.00025301,2]
[345286045,1734139846865,-1581.85116931,0.00025569,2]
[345286048,1734139846874,-4865.0,0.000256,2]
[345286050,1734139846883,-420.0,0.0002565,2]
[345286053,1734139846892,-400.0,0.000257,4]
[345286056,1734139846902,-400.0,0.000257,4]
[345286058,1734139846912,-312.55404834,0.00025783,2]
[345286061,1734139846921,-301.483443,0.000258,14]
[345286065,1734139846932,-531.3007399,0.00026,2]
[345286067,1734139846941,-230.53491713,0.00026,2]
[345286091,1734139847070,-512.52958902,0.00026,2]
[345286095,1734139847081,-11580.39769425,0.00026,2]
[345286098,1734139847090,-3638.57572835,0.00026,2]
[345286100,1734139847100,-4431.03140638,0.00026,2]
[345286187,1734139847859,-541.65683526,0.00026,2]
[345286189,1734139847875,-496.778,0.00026,2]
[345286271,1734139848639,-8793.95375836,0.00026,2]
[345286274,1734139848651,-371.2594016,0.00026,4]
[345286278,1734139848663,-420.0,0.00026009,2]
[345286281,1734139848673,-232.545928,0.00026921,2]
[345286283,1734139848683,-500.0,0.00026999,2]
[345286285,1734139848692,-208.67444939,0.00026999,2]
[345286287,1734139848701,-500.0,0.00026999,2]
[345286289,1734139848709,-500.0,0.00026999,2]
[345286291,1734139848720,-168.65740466,0.00026999,2]
[345286293,1734139848730,-551.09398871,0.00026999,2]
[345286295,1734139848740,-95994.0878321,0.00027,2]
[345286297,1734139848750,-3623.73370251,0.00027,2]
[345286299,1734139848760,-180.26339398,0.00027,2]
[345286301,1734139848772,-331.55,0.00027,14]
[345286303,1734139848783,-160.0,0.00027143,3]
[345286305,1734139848792,-500.0,0.00027194,2]
[345286307,1734139848801,-918.66775379,0.00027362,2]
[345286309,1734139848810,-507.73149175,0.00027373,2]
[345286311,1734139848820,-500.0,0.00027373,2]
[345286313,1734139848830,-500.0,0.00027373,2]
[345286315,1734139848839,-500.0,0.00027373,2]
[345286317,1734139848849,-500.0,0.00027373,2]
[345286319,1734139848862,-320.27645174,0.00027373,2]
[345286321,1734139848873,-500.0,0.00027373,2]
[345286323,1734139848882,-155.34088786,0.00027396,2]
[345286325,1734139848892,-460.73878159,0.00027396,2]
[345286327,1734139848901,-83880.44787503,0.00027397,2]
[345286481,1734139909530,214.193073,0.00013973,2]
[345286483,1734139982815,163.0,0.0002,3]
[345286484,1734139983016,163.0,0.0002,3]
[345286485,1734140037819,206.87176143,0.00020222,2]
[345286486,1734140091750,3843.03695323,0.000256,60]
[345286499,1734140888576,45664.0,0.000256,60]
[345286500,1734140934298,211.564781,0.00013973,2]
[345286522,1734141000425,150.91,0.00020222,2]
[345286565,1734141032500,-211.564781,0.00020447,2]
[345286567,1734141032510,-150.210773,0.000246,2]
[345286569,1734141032520,-257.591,0.00025054,2]
[345286570,1734141032530,-316.991,0.00025054,2]
[345286571,1734141032539,-150.13,0.00025054,2]
[345286572,1734141032549,-150.174,0.00025054,2]
[345286573,1734141032559,-170.174812,0.00025606,2]
[345286574,1734141032569,-212.414962,0.00025917,2]
[345286575,1734141032580,-569.448,0.0002603,2]
[345286576,1734141032590,-211.564781,0.00026921,2]
[345286577,1734141032599,-239.0,0.00027,2]
[345286578,1734141032608,-4080.6396168,0.00027188,10]
[345286579,1734141032618,-300.0,0.00027199,2]
[345286580,1734141032627,-300.0,0.00027199,2]
[345286582,1734141032636,-2000.0,0.000272,2]
[345286584,1734141032646,-1101.93485267,0.000272,3]
[345286586,1734141032658,-606.84252089,0.000272,3]
[345286588,1734141032669,-291.22262644,0.000272,3]
[345286590,1734141032679,-1170.48256356,0.000272,4]
[345286617,1734141038499,-829.51743644,0.000272,4]
[345286618,1734141038508,-2000.0,0.000272,5]
[345286619,1734141038517,-2000.0,0.000272,6]
[345286620,1734141038527,-2000.0,0.000272,7]
[345286621,1734141038536,-485.08256356,0.00027297,2]
[345286623,1734141038548,-470.82958933,0.00027297,2]
[345287358,1734141046355,-230.47622411,0.00027297,2]
[345287360,1734141046365,-500.0,0.00027373,2]
[345287362,1734141046375,-301.14928361,0.00027373,2]
[345296176,1734141893303,195.992785,0.00013973,2]
[345296199,1734142232709,-195.992785,0.00020447,2]
[345296201,1734142232719,-400.0,0.00023,2]
[345296203,1734142232729,-458.85,0.00024,2]
[345296205,1734142232738,-300.0,0.00024,2]
[345296207,1734142232747,-250.1746434,0.00025433,2]
[345296209,1734142232756,-33.95976077,0.00025611,2]
[345296226,1734142232916,-146.43613723,0.00025611,2]
[345296229,1734142232926,-4501.7512148,0.00025721,2]
[345296231,1734142232935,-179.03031566,0.0002593,2]
[345296233,1734142232945,-545.822,0.0002603,2]
[345296235,1734142232954,-190.13381,0.000263,2]
[345296237,1734142232963,-300.0,0.00026371,2]
[345296239,1734142232973,-300.0,0.00026371,2]
[345296241,1734142232982,-12262.2370689,0.00026372,2]
[345296243,1734142232992,-195.992785,0.00026921,2]
[345296245,1734142233001,-597.59,0.00026972,15]
[345296247,1734142233010,-65434.97292796,0.00027,2]
[345296308,1734142238640,-184.73,0.00023951,2]
[345296310,1734142238649,-310.3843853,0.00027,2]
[345306268,1734142896862,96056.0,0.000202,3]
[345306270,1734143062932,174.675229,0.00013973,2]
[345306355,1734143433131,-174.675229,0.00020447,2]
[345306356,1734143433140,-162.97286763,0.000219,2]
[345306357,1734143433150,-300.0,0.00021999,2]
[345306358,1734143433160,-300.0,0.00021999,2]
[345306359,1734143433169,-7898.34053227,0.00022,2]
[345306360,1734143433182,-421.49265646,0.00022,2]
[345306370,1734143438946,-1153.346855,0.00022,2]
[345306382,1734143441027,-2286.14007153,0.00022,2]
[345306383,1734143441036,-243.52389517,0.00023,2]
[345306384,1734143441046,-420.0,0.00023906,2]
[345306385,1734143441055,-420.0,0.00024199,2]
[345306386,1734143441065,-170.174812,0.0002486,2]
[345306387,1734143441076,-203.5166036,0.00024913,2]
[345306388,1734143441085,-1959.19731989,0.00025,2]
[345306396,1734143444090,-499.9967325,0.00025,2]
[345306397,1734143444102,-1048.49236751,0.00025,2]
[345306439,1734143446940,-6019.14459728,0.00025,2]
[345306441,1734143446951,-15674.73392908,0.00025,2]
[345306444,1734143446961,-1432.85159561,0.00025144,2]
[345306448,1734143447085,-178.81,0.00025244,2]
[345306449,1734143447095,-533.0,0.00025254,2]
[345306450,1734143447104,-2175.686,0.00025254,2]
[345306451,1734143447114,-2370.0,0.00025254,2]
[345306452,1734143447123,-215.400134,0.00025274,2]
[345306453,1734143447132,-1811.086258,0.00025652,2]
[345306455,1734143447141,-1432.85159554,0.00025863,2]
[345306456,1734143447151,-200.0,0.00025889,15]
[345306458,1734143447161,-587.0,0.00025977,2]
[345306460,1734143447171,-523.183,0.0002603,2]
[345306462,1734143447180,-1432.85159554,0.00026583,2]
[345306464,1734143447190,-587.0,0.00026619,2]
[345306466,1734143447199,-27127.23580877,0.000269,5]
[345306468,1734143447211,-613.23163369,0.000269,5]
[345306470,1734143447220,-174.675229,0.00026921,2]
[345306472,1734143447230,-1537.29,0.00027,3]
[345306474,1734143447239,-303.8,0.00027,2]
[345306476,1734143447248,-9211.54569887,0.00027,2]
[345306478,1734143447259,-1000.0,0.000272,2]
[345306480,1734143447268,-2000.0,0.000272,3]
[345306482,1734143447277,-185.0,0.00027297,3]
[345306484,1734143447287,-666.0,0.00027297,2]
[345306486,1734143447296,-1553.71588164,0.000273,3]
[345306488,1734143447308,-446.28411836,0.000273,3]
[345306490,1734143447317,-150.139009,0.000273,2]
[345306492,1734143447326,-1432.85159554,0.00027302,2]
[345306494,1734143447335,-210.911,0.0002737,2]
[345306496,1734143447345,-500.0,0.00027373,2]
[345306498,1734143447354,-500.0,0.00027373,2]
[345306500,1734143447364,-502.99118708,0.00027373,2]
[345306502,1734143447373,-500.0,0.00027373,2]
[345306504,1734143447382,-160.95098144,0.00027396,2]
[345306505,1734143447393,-7201.15706258,0.00027396,2]
[345306506,1734143447406,-17686.43122003,0.00027396,2]
[345306511,1734144244951,160.101241,0.00013973,2]
[345306563,1734144632190,-160.101241,0.00020447,2]
[345306565,1734144632203,-162.5381692,0.00025845,2]
[345306567,1734144632214,-501.266,0.0002603,2]
[345306569,1734144632226,-172.274651,0.00026116,2]
[345306572,1734144632237,-300.0,0.00026749,2]
[345306574,1734144632249,-300.0,0.00026749,2]
[345306576,1734144632260,-8968.8234865,0.0002675,2]
[345306578,1734144632275,-160.101241,0.00026921,2]
[345306581,1734144632286,-1588.48634616,0.00026961,2]
[345306582,1734144632300,-7380.33714034,0.00026961,2]
[345306583,1734144632314,-8170.29352542,0.00027,2]
[345306620,1734144638122,-369.99999999,0.00027,2]
[345306622,1734144638133,-51279.96655707,0.00027,2]
[345306854,1734144640290,-31956.98410677,0.00027,2]
[345306856,1734144640300,-8968.82348651,0.00027138,2]
[345306858,1734144640311,-153.304883,0.00027146,7]
[345306860,1734144640319,-2049.107209,0.00027146,7]
[345306862,1734144640329,-2049.107209,0.00027146,7]
[345306864,1734144640338,-713.948062,0.00027146,7]
[345306866,1734144640348,-713.948062,0.00027146,7]
[345306868,1734144640357,-151.0,0.00027146,7]
[345306870,1734144640366,-151.0,0.00027146,7]
[345306872,1734144640375,-151.0,0.00027146,7]
[345306874,1734144640384,-151.0,0.00027146,7]
[345306876,1734144640393,-53448.25416647,0.00027192,2]
[345306878,1734144640403,-4069.56419263,0.00027192,2]
[345306880,1734144640412,-151.0,0.00027192,7]
[345306882,1734144640424,-151.0,0.00027192,7]
[345306884,1734144640433,-151.0,0.00027192,7]
[345306886,1734144640443,-156.516159,0.00027192,7]
[345306888,1734144640452,-151.0,0.00027192,7]
[345306890,1734144640461,-271.577665,0.00027192,7]
[345306892,1734144640470,-151.967818,0.00027192,7]
[345306894,1734144640480,-151.0,0.00027192,7]
[345306896,1734144640489,-298.128086,0.00027192,7]
[345306898,1734144640499,-505.27661,0.00027192,7]
[345306901,1734144640510,-505.27661,0.00027192,7]
[345306903,1734144640519,-298.128086,0.00027192,7]
[345306905,1734144640529,-271.936393,0.00027192,7]
[345306907,1734144640538,-666.0,0.00027297,2]
[345306909,1734144640547,-151.0,0.00027314,7]
[345306911,1734144640556,-151.0,0.00027314,7]
[345306913,1734144640565,-151.0,0.00027314,7]
[345306915,1734144640574,-151.0,0.00027314,7]
[345306917,1734144640584,-151.0,0.00027314,7]
[345306919,1734144640593,-151.0,0.00027314,7]
[345306921,1734144640602,-152.067649,0.00027314,7]
[345306923,1734144640612,-186.192898,0.00027314,7]
[345306924,1734144640621,-186.192898,0.00027314,7]
[345306926,1734144640630,-151.0,0.00027314,7]
[345306928,1734144640639,-151.0,0.00027314,7]
[345306930,1734144640648,-257.168983,0.00027314,7]
[345306932,1734144640657,-151.0,0.00027314,7]
[345306934,1734144640665,-775.178457,0.00027314,7]
[345306936,1734144640674,-775.178457,0.00027314,7]
[345306938,1734144640683,-160.0,0.00027314,3]
[345306940,1734144640692,-160.0,0.00027314,3]
[345306942,1734144640701,-167.0,0.00027314,3]
[345306944,1734144640710,-160.0,0.00027314,3]
[345306946,1734144640719,-167.0,0.00027314,3]
[345306948,1734144640728,-160.0,0.00027314,3]
[345306950,1734144640738,-166.0,0.00027314,3]
[345306952,1734144640747,-160.0,0.00027314,3]
[345306954,1734144640756,-160.0,0.00027314,3]
[345306956,1734144640765,-160.0,0.00027314,3]
[345306958,1734144640774,-160.0,0.00027314,3]
[345306960,1734144640783,-160.0,0.00027314,3]
[345306962,1734144640792,-160.0,0.00027314,3]
[345306964,1734144640802,-160.0,0.00027314,3]
[345306966,1734144640812,-160.0,0.00027314,3]
[345306968,1734144640821,-160.98,0.00027314,3]
[345306970,1734144640830,-500.0,0.00027373,2]
[345306972,1734144640840,-500.0,0.00027373,2]
[345306974,1734144640849,-500.0,0.00027373,2]
[345306976,1734144640858,-282.68943555,0.00027373,2]
[345306978,1734144640868,-21777.10889643,0.00027396,2]
[345307213,1734144643207,-328.76355483,0.000273,2]
[345307216,1734144643222,-260.046,0.000273,2]
[345307497,1734144646033,-474.80484817,0.000273,2]
[345307499,1734144646043,-500.0,0.00027373,2]
[345307501,1734144646053,-82034.95873585,0.00027396,2]
[345307504,1734144646065,-7574.59223129,0.00027396,2]
[345310079,1734145130912,160.101241,0.00013973,2]
[345310114,1734145832576,-946.88873556,0.00021561,2]
[345310115,1734145832588,-525.22562685,0.00021561,2]
[345310116,1734145832597,-160.101241,0.00021661,2]
[345310117,1734145832607,-195.0,0.00025,2]
[345310118,1734145832616,-172.274651,0.0002529,2]
[345310119,1734145832625,-2141.47124001,0.00025557,2]
[345310120,1734145832638,-2379.499984,0.00025557,2]
[345310180,1734145838605,-424.92170599,0.00025557,2]
[345310182,1734145838615,-195.0,0.0002567,2]
[345310184,1734145838625,-300.0,0.00025999,2]
[345310186,1734145838634,-300.0,0.00025999,2]